bitfinex/quotes_BTCUSD_20251231
["timestamp","ask_amount","ask_price","bid_price","bid_amount"]
[1767184795521,0.06751368,88871.0,88861.0,8.349e-05]
[1767184795744,0.01125226,88871.0,88861.0,8.349e-05]
[1767184795942,0.01125239,88870.0,88861.0,8.349e-05]
[1767184796223,0.06751439,88870.0,88861.0,8.349e-05]
[1767184796422,0.01125251,88869.0,88861.0,8.349e-05]
[1767184796668,0.0675146,88870.0,88861.0,8.349e-05]
[1767184796884,0.06751518,88869.0,88861.0,8.349e-05]
[1767184797074,0.01125264,88868.0,88861.0,8.349e-05]
[1767184797310,0.06751518,88869.0,88861.0,8.349e-05]
[1767184797440,0.01125264,88868.0,88861.0,8.349e-05]
[1767184797642,0.06751745,88866.0,88861.0,8.349e-05]
[1767184797858,0.01125302,88865.0,88861.0,3.49e-06]
[1767184798063,0.00239,88864.0,88861.0,3.49e-06]
[1767184798272,0.05626323,88868.0,88861.0,3.49e-06]
[1767184798513,0.06751586,88868.0,88861.0,3.49e-06]
[1767184798688,0.01125239,88870.0,88861.0,3.49e-06]
[1767184798891,0.01125226,88871.0,88861.0,3.49e-06]
[1767184799073,0.01125239,88870.0,88861.0,3.49e-06]
[1767184800717,0.01125137,88878.0,88862.0,0.13196]
[1767184800891,0.06750886,88878.0,88870.0,0.000549]
[1767184801224,0.06751007,88876.0,88870.0,0.000549]
[1767184801427,0.01125175,88875.0,88861.0,0.13196349]
[1767184801627,0.01125188,88874.0,88861.0,0.13196349]
[1767184801838,0.01124922,88895.0,88877.0,0.13196]
[1767184802052,0.27170028,88890.0,88881.0,0.13196]
[1767184802193,0.26045043,88890.0,88881.0,0.13196]
[1767184802802,0.01124985,88890.0,88881.0,0.13196]
[1767184803146,0.26045043,88891.0,88881.0,0.13196]
[1767184803912,0.01124947,88893.0,88881.0,0.13196]
[1767184804209,0.26045043,88891.0,88881.0,0.13196]
[1767184804590,0.12147242,88894.0,88881.0,0.13196]
[1767184805053,0.01132,88894.0,88881.0,0.14321099]
[1767184805259,0.01132,88894.0,88883.0,0.13196]
[1767184807475,0.0002826,88896.0,88881.0,0.01125099]
[1767184807635,0.01128,88893.0,88882.0,0.14321087]
[1767184807819,0.01128,88893.0,88883.0,0.01125074]
[1767184808016,0.01128,88893.0,88884.0,0.13196]
[1767184808423,0.0002826,88896.0,88884.0,0.13196]
[1767184808665,0.01128,88895.0,88884.0,0.13196]
[1767184813969,0.0002826,88896.0,88895.0,0.000549]
[1767184814169,0.0002826,88896.0,88891.0,0.13196]
[1767184815173,0.00038878,88896.0,88891.0,0.13196]
[1767184815404,0.00010678,88896.0,88891.0,0.13196]
[1767184817597,0.01124834,88902.0,88888.0,0.13196]
[1767184817805,0.0674898,88903.0,88888.0,0.13196]
[1767184817988,0.01124834,88902.0,88888.0,0.13196]
[1767184818188,0.02252808,88904.0,88889.0,0.01124998]
[1767184818365,0.02252808,88904.0,88888.0,0.01125011]
[1767184818366,0.01128,88904.0,88893.0,0.12482]
[1767184818818,0.02252808,88904.0,88893.0,0.12482]
[1767184819418,0.01124821,88903.0,88893.0,0.12482]
[1767184819618,0.01124834,88902.0,88893.0,0.12482]
[1767184819918,0.01124846,88901.0,88893.0,0.12482]
[1767184820284,0.01128,88904.0,88893.0,0.12482]
[1767184820890,0.01124808,88904.0,88893.0,0.12482]
[1767184821144,0.01124834,88902.0,88893.0,0.12482]
[1767184821490,0.01124821,88903.0,88893.0,0.12482]
[1767184821690,0.01124834,88902.0,88893.0,0.12482]
[1767184821887,0.01124846,88901.0,88893.0,0.12482]
[1767184822095,0.06749095,88901.0,88893.0,0.12482]
[1767184822334,0.01124872,88899.0,88893.0,0.12482]
[1767184822536,0.05624671,88895.0,88893.0,0.12482]
[1767184822718,0.0112491,88896.0,88893.0,0.12482]
[1767184822719,0.0112491,88896.0,88893.0,0.124538]
[1767184823346,0.06749515,88896.0,88893.0,0.124538]
[1767184823741,0.06749444,88897.0,88893.0,0.124538]
[1767184823919,0.0112491,88896.0,88893.0,0.124538]
[1767184824281,0.01125011,88888.0,88876.0,0.13124]
[1767184824405,0.00943111,88888.0,88878.0,0.13124]
[1767184824605,0.01124985,88890.0,88879.0,0.14252]
[1767184824824,0.06750107,88888.0,88879.0,0.14252]
[1767184825026,0.01125011,88888.0,88879.0,0.14252]
[1767184825231,0.01124998,88889.0,88879.0,0.13124]
[1767184825428,0.06749915,88890.0,88880.0,0.14252]
[1767184825654,0.01124985,88890.0,88880.0,0.14252]
[1767184825875,0.05625113,88888.0,88880.0,0.14252]
[1767184826165,0.06749968,88890.0,88880.0,0.14252]
[1767184826343,0.06749968,88890.0,88880.0,0.13124]
[1767184826545,0.06749968,88890.0,88881.0,0.14252]
[1767184826948,0.05624988,88890.0,88881.0,0.14252]
[1767184827171,0.01124998,88889.0,88881.0,0.14252]
[1767184827349,0.05624803,88892.0,88881.0,0.14252]
[1767184827549,0.01124947,88893.0,88881.0,0.14252]
[1767184827755,0.06749728,88894.0,88881.0,0.14252]
[1767184828154,0.01124947,88893.0,88881.0,0.14252]
[1767184828351,0.06749728,88894.0,88881.0,0.14252]
[1767184828673,0.01124947,88893.0,88882.0,0.14252]
[1767184828979,0.06749728,88894.0,88882.0,0.14252]
[1767184828980,0.01124935,88894.0,88882.0,0.14252]
[1767184829175,0.01124947,88893.0,88882.0,0.14252]
[1767184829319,0.06749611,88894.0,88882.0,0.14252]
[1767184829670,0.01124947,88893.0,88882.0,0.14252]
[1767184830081,0.06749611,88894.0,88882.0,0.14252]
[1767184830665,0.01124947,88893.0,88882.0,0.14252]
[1767184830859,0.06749611,88894.0,88882.0,0.14252]
[1767184831274,0.0674969,88893.0,88882.0,0.14252]
[1767184831472,0.0112496,88892.0,88882.0,0.13124]
[1767184831644,0.01124985,88890.0,88882.0,0.13124]
[1767184831868,0.01124985,88890.0,88882.0,0.13119695]
[1767184832069,0.06749916,88890.0,88882.0,0.13119695]
[1767184832251,0.06749767,88892.0,88882.0,0.13119695]
[1767184833013,0.01124985,88890.0,88882.0,0.13119695]
[1767184833569,0.06749938,88890.0,88882.0,0.13119695]
[1767184833829,0.01124985,88890.0,88882.0,0.13119695]
[1767184834220,0.01124998,88889.0,88882.0,0.13119695]
[1767184834425,0.06749936,88890.0,88882.0,0.13119695]
[1767184834826,0.01124985,88890.0,88882.0,0.13119695]
[1767184834986,0.06749974,88890.0,88882.0,0.13119695]
[1767184835197,0.01124998,88889.0,88882.0,0.13119695]
[1767184835400,0.01124985,88890.0,88882.0,0.13119695]
[1767184835597,0.0112496,88892.0,88882.0,0.13119695]
[1767184835818,0.01124922,88895.0,88882.0,0.13119695]
[1767184835995,0.06749544,88895.0,88892.0,0.131789]
[1767184836180,0.05624724,88894.0,88892.0,0.000549]
[1767184836388,0.06749543,88895.0,88886.0,0.13124]
[1767184836583,0.01124947,88893.0,88886.0,0.13124]
[1767184836829,0.01124973,88891.0,88881.0,0.01128]
[1767184837007,0.06749818,88892.0,88881.0,0.14252]
[1767184837213,0.01124947,88893.0,88881.0,0.13124]
[1767184837545,0.06749695,88893.0,88881.0,0.14252]
[1767184837743,0.06749695,88893.0,88881.0,0.14262618]
[1767184838180,0.01124985,88890.0,88881.0,0.14262618]
[1767184838337,0.06749811,88892.0,88881.0,0.14262618]
[1767184838540,0.06749853,88891.0,88881.0,0.14262618]
[1767184839137,0.06749853,88891.0,88881.0,0.13134618]
[1767184839138,0.01124985,88890.0,88881.0,0.13134618]
[1767184839335,0.0674993,88890.0,88881.0,0.14262618]
[1767184839542,0.01124985,88890.0,88881.0,0.14262618]
[1767184840585,0.06749915,88890.0,88881.0,0.14262618]
[1767184840741,0.01125011,88888.0,88881.0,0.14262618]
[1767184841081,0.01124998,88889.0,88881.0,0.14262618]
[1767184841384,0.06749855,88891.0,88881.0,0.14262618]
[1767184841616,0.01124985,88890.0,88881.0,0.14262618]
[1767184842747,0.06749855,88891.0,88881.0,0.14262618]
[1767184842984,0.01124985,88890.0,88881.0,0.14262618]
[1767184843286,0.06749855,88891.0,88881.0,0.14262618]
[1767184843505,0.01124985,88890.0,88881.0,0.13134618]
[1767184845916,0.01124973,88891.0,88881.0,0.13134618]
[1767184846075,0.06749843,88891.0,88881.0,0.13134618]
[1767184847925,0.06749933,88890.0,88881.0,0.13134618]
[1767184848279,0.01124998,88889.0,88881.0,0.13134618]
[1767184848713,0.06749933,88890.0,88881.0,0.13134618]
[1767184849349,0.01124985,88890.0,88881.0,0.13134618]
[1767184849548,0.06749943,88890.0,88881.0,0.13134618]
[1767184850198,0.06749991,88889.0,88881.0,0.13134618]
[1767184850422,0.01125011,88888.0,88881.0,0.13134618]
[1767184850623,0.01125011,88888.0,88881.0,0.13130389]
[1767184850948,0.06749991,88889.0,88881.0,0.13130389]
[1767184851316,0.01125011,88888.0,88881.0,0.13130389]
[1767184851528,0.05625435,88882.0,88881.0,0.00010618]
[1767184851754,0.05625428,88883.0,88881.0,0.00010618]
[1767184851961,0.01125061,88884.0,88881.0,6.403e-05]
[1767184852168,0.06750378,88884.0,88881.0,6.403e-05]
[1767184852370,0.05625394,88883.0,88881.0,6.403e-05]
[1767184852577,0.06750378,88884.0,88881.0,6.403e-05]
[1767184852787,0.06750308,88885.0,88881.0,6.403e-05]
[1767184853012,0.06750387,88884.0,88881.0,2.131e-05]
[1767184853220,0.06750384,88884.0,88881.0,2.131e-05]
[1767184853471,0.01125061,88884.0,88881.0,2.131e-05]
[1767184854263,0.06750375,88884.0,88881.0,2.131e-05]
[1767184854447,0.01125061,88884.0,88881.0,2.131e-05]
[1767184855871,0.06750373,88884.0,88881.0,2.131e-05]
[1767184856072,0.01125061,88884.0,88881.0,2.131e-05]
[1767184856273,0.06750222,88886.0,88881.0,2.131e-05]
[1767184856474,0.01125049,88885.0,88881.0,2.131e-05]
[1767184856739,0.02252973,88891.0,88881.0,2.131e-05]
[1767184857090,0.01125023,88887.0,88881.0,2.131e-05]
[1767184857816,0.01125036,88886.0,88881.0,0.13172131]
[1767184858353,0.06695245,88887.0,88881.0,0.13172131]
[1767184858555,0.06695245,88887.0,88881.0,2.131e-05]
[1767184858756,0.06750241,88886.0,88881.0,2.131e-05]
[1767184858973,0.01125049,88885.0,88881.0,2.131e-05]
[1767184859436,0.01125036,88886.0,88881.0,2.131e-05]
[1767184859641,0.01125049,88885.0,88881.0,2.131e-05]
[1767184860820,0.05625427,88883.0,88881.0,2.131e-05]
[1767184861028,0.0675037,88884.0,88881.0,2.131e-05]
[1767184861233,0.05625396,88883.0,88881.0,2.131e-05]
[1767184862061,0.06750488,88884.0,88881.0,2.131e-05]
[1767184862482,0.06750319,88885.0,88881.0,2.131e-05]
[1767184862885,0.01125049,88885.0,88881.0,2.131e-05]
[1767184863085,0.06750249,88886.0,88881.0,2.131e-05]
[1767184863710,0.01125036,88886.0,88881.0,2.131e-05]
[1767184865534,0.01125049,88885.0,88881.0,2.131e-05]
[1767184866911,0.01125061,88884.0,88881.0,2.131e-05]
[1767184867797,0.0675038,88884.0,88881.0,2.131e-05]
[1767184868135,0.05625394,88883.0,88881.0,2.131e-05]
[1767184868692,0.05625435,88882.0,88881.0,2.131e-05]
[1767184869100,0.05625394,88883.0,88881.0,2.131e-05]
[1767184871230,0.01125061,88884.0,88881.0,2.131e-05]
[1767184871552,0.06750295,88885.0,88881.0,2.131e-05]
[1767184871892,0.01125061,88884.0,88881.0,2.131e-05]
[1767184872560,0.06750295,88885.0,88881.0,2.131e-05]
[1767184872711,0.06750227,88886.0,88881.0,2.131e-05]
[1767184873795,0.01125049,88885.0,88881.0,2.131e-05]
[1767184873995,0.01125061,88884.0,88881.0,2.131e-05]
[1767184874195,0.05625396,88883.0,88881.0,2.131e-05]
[1767184874415,0.06750419,88884.0,88881.0,2.131e-05]
[1767184875269,0.05625395,88883.0,88881.0,2.131e-05]
[1767184876869,0.05625435,88882.0,88881.0,2.131e-05]
[1767184877277,0.05625395,88883.0,88881.0,2.131e-05]
[1767184878186,0.06750373,88884.0,88881.0,2.131e-05]
[1767184878984,0.05625435,88882.0,88881.0,2.131e-05]
[1767184879146,0.05625397,88883.0,88881.0,2.131e-05]
[1767184880585,0.05625435,88882.0,88881.0,2.131e-05]
[1767184881542,0.05029145,88882.0,88881.0,2.131e-05]
[1767184885373,0.05625397,88883.0,88882.0,0.00055]
[1767184885767,0.05625397,88883.0,88881.0,2.131e-05]
[1767184885977,0.00052869,88880.0,88874.0,0.13516]
[1767184886200,5.243e-05,88880.0,88874.0,0.13516]
[1767184886398,0.01128,88891.0,88876.0,0.01125163]
[1767184886708,0.01128,88893.0,88881.0,0.13516]
[1767184886893,0.02258123,88893.0,88881.0,0.13516]
[1767184887074,0.01133176,88893.0,88881.0,0.13516]
[1767184887498,0.0112496,88892.0,88881.0,0.13516]
[1767184888275,0.02258123,88893.0,88881.0,0.13516]
[1767184888477,0.01133176,88893.0,88881.0,0.13516]
[1767184888823,0.07882895,88893.0,88881.0,0.13516]
[1767184889231,0.06749772,88892.0,88881.0,0.13516]
[1767184889482,0.01124973,88891.0,88881.0,0.13516]
[1767184889677,0.06749776,88892.0,88881.0,0.13516]
[1767184889880,0.01124973,88891.0,88881.0,0.13516]
[1767184890558,0.02258123,88893.0,88881.0,0.13516]
[1767184890771,0.0788288,88893.0,88881.0,0.13516]
[1767184891162,0.0112496,88892.0,88881.0,0.13516]
[1767184891678,0.01124973,88891.0,88881.0,0.13516]
[1767184892095,0.02258123,88893.0,88881.0,0.13516]
[1767184892269,0.01133176,88893.0,88881.0,0.13516]
[1767184892451,0.02258123,88893.0,88881.0,0.13516]
[1767184892876,0.01133176,88893.0,88881.0,0.13516]
[1767184893213,0.01130123,88893.0,88884.0,0.13516]
[1767184893337,0.06754875,88893.0,88884.0,0.13516]
[1767184893537,0.0112496,88892.0,88884.0,0.13516]
[1767184893872,0.06754875,88893.0,88881.0,0.13516]
[1767184894074,0.01130123,88893.0,88881.0,0.13516]
[1767184894448,0.0112496,88892.0,88881.0,0.13516]
[1767184894640,0.01130123,88893.0,88881.0,0.13516]
[1767184895259,0.0112496,88892.0,88881.0,0.13516]
[1767184895580,0.01130123,88893.0,88881.0,0.13516]
[1767184895762,0.0112496,88892.0,88881.0,0.13516]
[1767184896714,0.0675487,88893.0,88881.0,0.13516]
[1767184896865,5.176e-05,88893.0,88881.0,0.13516]
[1767184897066,0.01130123,88893.0,88883.0,0.26036595]
[1767184897307,0.06754864,88893.0,88883.0,0.26036595]
[1767184897866,0.0112496,88892.0,88883.0,0.26036595]
[1767184898422,0.0112496,88892.0,88881.0,0.13746]
[1767184898423,0.01130123,88893.0,88881.0,0.13746]
[1767184898914,5.176e-05,88893.0,88881.0,0.13746]
[1767184899122,0.01130123,88893.0,88881.0,0.13746]
[1767184899302,0.06754879,88893.0,88881.0,0.13746]
[1767184902684,0.0112496,88892.0,88881.0,0.13746]
[1767184902959,5.176e-05,88893.0,88883.0,0.13516]
[1767184903162,0.0112496,88892.0,88883.0,0.13516]
[1767184903368,0.06749893,88891.0,88883.0,0.13516]
[1767184903589,0.06749775,88892.0,88883.0,0.13516]
[1767184903871,0.01124973,88891.0,88883.0,0.13516]
[1767184904233,0.01124985,88890.0,88883.0,0.13516]
[1767184904440,0.06749855,88891.0,88883.0,0.13516]
[1767184904643,0.01124973,88891.0,88883.0,0.13516]
[1767184904843,0.01124985,88890.0,88883.0,0.13516]
[1767184905383,0.0674985,88891.0,88883.0,0.13516]
[1767184905729,0.01124985,88890.0,88883.0,0.13516]
[1767184906187,0.01124973,88891.0,88883.0,0.13516]
[1767184906570,0.06749842,88891.0,88883.0,0.13516]
[1767184909696,0.01124985,88890.0,88883.0,0.13516]
[1767184910656,0.06749841,88891.0,88883.0,0.13516]
[1767184910904,0.06749767,88892.0,88883.0,0.13516]
[1767184911468,0.01124973,88891.0,88883.0,0.13516]
[1767184912257,0.01124985,88890.0,88883.0,0.13516]
[1767184912678,0.0674999,88889.0,88883.0,0.13516]
[1767184912879,0.01125023,88887.0,88883.0,0.13516]
[1767184913081,0.01125023,88887.0,88883.0,0.13511613]
[1767184913278,0.06749992,88889.0,88883.0,0.13458913]
[1767184913958,0.01125011,88888.0,88883.0,0.13454765]
[1767184914266,0.06749923,88890.0,88883.0,0.13454765]
[1767184914516,0.05624953,88890.0,88883.0,0.13454765]
[1767184914721,0.06749938,88890.0,88883.0,0.13454765]
[1767184915102,0.01124973,88891.0,88883.0,0.13454765]
[1767184915739,0.01124985,88890.0,88883.0,0.13454765]
[1767184915919,0.06749842,88891.0,88883.0,0.13454765]
[1767184916514,0.01124973,88891.0,88883.0,0.13454765]
[1767184916719,0.01124985,88890.0,88883.0,0.13454765]
[1767184917940,0.06749854,88891.0,88883.0,0.13454765]
[1767184918282,0.0112496,88892.0,88883.0,0.13454765]
[1767184918807,0.0675491,88893.0,88883.0,0.13454765]
[1767184919365,0.01130123,88893.0,88883.0,0.13454765]
[1767184919707,0.06754875,88893.0,88883.0,0.13454765]
[1767184919948,0.06749771,88892.0,88883.0,0.13454765]
[1767184920525,0.0112496,88892.0,88883.0,0.13454765]
[1767184920940,5.176e-05,88893.0,88883.0,0.13454765]
[1767184921142,0.05629948,88893.0,88883.0,0.13454765]
[1767184921346,5.176e-05,88893.0,88883.0,0.13454765]
[1767184926164,0.01130123,88893.0,88883.0,0.13454765]
[1767184926799,5.176e-05,88893.0,88883.0,0.13454765]
[1767184932086,0.01130123,88893.0,88883.0,0.13454765]
[1767184932385,5.176e-05,88893.0,88883.0,0.13454765]
[1767184932588,5.176e-05,88893.0,88883.0,0.13450409]
[1767184933139,5.176e-05,88893.0,88884.0,0.01128]
[1767184933356,5.176e-05,88893.0,88885.0,0.12818]
[1767184940744,5.176e-05,88893.0,88885.0,0.12813622]
[1767184941126,0.01130123,88893.0,88885.0,0.12813622]
[1767184941595,5.176e-05,88893.0,88885.0,0.12813622]
[1767184944389,0.01130123,88893.0,88885.0,0.12813622]
[1767184944557,5.176e-05,88893.0,88885.0,0.12813622]
[1767184949176,0.01124935,88894.0,88885.0,0.12813622]
[1767184949417,0.06749614,88894.0,88885.0,0.12813622]
[1767184950251,0.01124947,88893.0,88885.0,0.12813622]
[1767184950612,0.06749614,88894.0,88885.0,0.12813622]
[1767184950965,0.01124947,88893.0,88885.0,0.12813622]
[1767184951165,0.06749614,88894.0,88885.0,0.12813622]
[1767184951515,0.01124935,88894.0,88885.0,0.12813622]
[1767184951911,0.06749768,88892.0,88885.0,0.12813622]
[1767184952188,0.01124985,88890.0,88885.0,0.12758622]
[1767184952391,0.01124998,88889.0,88885.0,0.12758622]
[1767184952805,0.0102513,88887.0,88884.0,0.01123821]
[1767184952955,0.05625244,88886.0,88884.0,0.01123821]
[1767184953155,0.01124985,88890.0,88881.0,0.0023]
[1767184953156,0.0112496,88892.0,88881.0,0.0023]
[1767184953356,0.01124985,88890.0,88881.0,0.0023]
[1767184953781,0.06749844,88891.0,88881.0,0.0023]
[1767184954011,0.01124998,88889.0,88881.0,0.1296]
[1767184954374,0.01125011,88888.0,88881.0,0.1296]
[1767184954586,0.01125023,88887.0,88881.0,0.1296]
[1767184955076,0.01125011,88888.0,88881.0,0.1296]
[1767184955678,0.01128,88899.0,88881.0,0.1296]
[1767184955914,0.05625008,88889.0,88881.0,0.1296]
[1767184956120,0.0112496,88892.0,88881.0,0.1296]
[1767184956300,0.01124947,88893.0,88881.0,0.1296]
[1767184956458,0.0112496,88892.0,88881.0,0.1296]
[1767184956658,0.01124947,88893.0,88881.0,0.1296]
[1767184956863,0.06749687,88893.0,88881.0,0.1296]
[1767184957292,0.0112496,88892.0,88881.0,0.1296]
[1767184957492,0.06749772,88892.0,88881.0,0.1296]
[1767184958092,0.01124973,88891.0,88881.0,0.1296]
[1767184958971,0.06749842,88891.0,88881.0,0.1295562]
[1767184959461,0.01124973,88891.0,88881.0,0.1295562]
[1767184960764,0.01124973,88891.0,88881.0,0.0022562]
[1767184961118,0.01124985,88890.0,88881.0,0.0022562]
[1767184961322,0.06749966,88890.0,88881.0,0.0022562]
[1767184961670,0.06750004,88889.0,88881.0,0.0022562]
[1767184961830,0.01125011,88888.0,88881.0,0.0022562]
[1767184962270,0.01125023,88887.0,88881.0,0.0022562]
[1767184962623,0.01125036,88886.0,88881.0,0.0022562]
[1767184962996,0.06750159,88887.0,88881.0,0.00221474]
[1767184962997,0.01125023,88887.0,88881.0,0.00221474]
[1767184963519,0.06750116,88888.0,88881.0,0.00221474]
[1767184963740,0.01125023,88887.0,88881.0,0.00221474]
[1767184964797,0.01125036,88886.0,88881.0,0.00221474]
[1767184965168,0.06750233,88886.0,88881.0,0.00221474]
[1767184965847,0.01125049,88885.0,88881.0,0.00221474]
[1767184966008,0.06750299,88885.0,88881.0,0.00221474]
[1767184966210,0.01125049,88885.0,88881.0,0.00221474]
[1767184966521,0.01125036,88886.0,88881.0,0.00221474]
[1767184966729,0.01125049,88885.0,88881.0,0.00221474]
[1767184967046,0.01125036,88886.0,88881.0,0.00221474]
[1767184967845,0.01125049,88885.0,88881.0,0.00221474]
[1767184968754,0.06750223,88886.0,88881.0,0.00221474]
[1767184969768,0.01125049,88885.0,88881.0,0.00221474]
[1767184969957,0.06750387,88884.0,88881.0,0.00221474]
[1767184970117,0.01125061,88884.0,88881.0,0.00221474]
[1767184970319,0.08694403,88884.0,88881.0,4.74e-06]
[1767184970800,0.05625396,88883.0,88881.0,4.74e-06]
[1767184971021,0.05625435,88882.0,88881.0,4.74e-06]
[1767184971458,0.05625396,88883.0,88881.0,4.74e-06]
[1767184972247,0.06750372,88884.0,88881.0,4.74e-06]
[1767184972982,0.01125049,88885.0,88881.0,4.74e-06]
[1767184973185,0.01125061,88884.0,88881.0,4.74e-06]
[1767184974304,0.05625366,88884.0,88881.0,4.74e-06]
[1767184974540,0.06750427,88884.0,88881.0,4.74e-06]
[1767184974891,0.06750319,88885.0,88881.0,4.74e-06]
[1767184975101,0.06750229,88886.0,88881.0,4.74e-06]
[1767184975304,0.01124998,88889.0,88886.0,0.000549]
[1767184975476,0.05625089,88888.0,88886.0,0.000549]
[1767184975677,0.05625119,88887.0,88881.0,4.74e-06]
[1767184976028,0.06750142,88887.0,88881.0,4.74e-06]
[1767184976191,0.067501,88888.0,88881.0,4.74e-06]
[1767184976672,0.22498803,88894.0,88881.0,4.74e-06]
[1767184976872,0.01125011,88888.0,88881.0,4.74e-06]
[1767184977080,0.06750112,88888.0,88881.0,4.74e-06]
[1767184977334,0.01125023,88887.0,88881.0,4.74e-06]
[1767184977482,0.06750112,88888.0,88881.0,4.74e-06]
[1767184978089,0.05625121,88887.0,88881.0,4.74e-06]
[1767184978286,0.01124998,88889.0,88881.0,4.74e-06]
[1767184978659,0.0675015,88887.0,88881.0,4.74e-06]
[1767184978877,0.01125023,88887.0,88881.0,4.74e-06]
[1767184979100,2e-07,88906.0,88888.0,0.121]
[1767184979311,0.0002,88909.0,88893.0,0.01124947]
[1767184979509,0.0002,88909.0,88899.0,0.121]
[1767184980601,0.01124821,88903.0,88899.0,0.121]
[1767184980829,0.01124821,88903.0,88886.0,0.01125036]
[1767184980830,0.01128,88903.0,88889.0,0.121]
[1767184981025,0.01124834,88902.0,88889.0,0.121]
[1767184981226,0.01128,88903.0,88889.0,0.121]
[1767184981424,0.01128,88903.0,88889.0,0.13224998]
[1767184981629,0.01128,88902.0,88889.0,0.121]
[1767184981835,0.01128,88902.0,88889.0,0.13224998]
[1767184981991,0.01128,88902.0,88891.0,0.121]
[1767184982200,0.26029575,88901.0,88891.0,0.121]
[1767184982404,0.01124846,88901.0,88891.0,0.121]
[1767184982618,0.01124859,88900.0,88891.0,0.121]
[1767184982825,0.01124846,88901.0,88891.0,0.121]
[1767184983026,0.0787704,88902.0,88891.0,0.121]
[1767184983224,0.0674908,88901.0,88891.0,0.121]
[1767184983425,0.01124859,88900.0,88891.0,0.121]
[1767184983853,0.07877118,88902.0,88891.0,0.121]
[1767184984054,0.01124846,88901.0,88891.0,0.121]
[1767184984237,0.06749095,88901.0,88891.0,0.121]
[1767184984562,0.06749171,88900.0,88891.0,0.121]
[1767184984705,0.06749098,88901.0,88891.0,0.121]
[1767184984910,0.01124859,88900.0,88891.0,0.121]
[1767184985219,0.01124884,88898.0,88891.0,0.121]
[1767184985426,0.0112491,88896.0,88891.0,0.121]
[1767184985737,0.0112491,88896.0,88884.0,0.121]
[1767184985928,0.01124897,88897.0,88884.0,0.121]
[1767184986332,0.06749478,88896.0,88884.0,0.121]
[1767184986534,0.01124897,88897.0,88884.0,0.121]
[1767184986535,0.06749313,88898.0,88884.0,0.121]
[1767184986825,0.01124897,88897.0,88884.0,0.121]
[1767184987027,0.06749313,88898.0,88884.0,0.121]
[1767184987842,0.01124897,88897.0,88884.0,0.121]
[1767184988392,0.01124897,88897.0,88884.0,0.12095736]
[1767184988752,0.06749348,88898.0,88884.0,0.12095736]
[1767184989364,0.06749348,88898.0,88884.0,0.12100912]
[1767184989539,0.01124872,88899.0,88884.0,0.12100912]
[1767184990163,0.01124884,88898.0,88884.0,0.12100912]
[1767184991182,0.01124872,88899.0,88885.0,0.121]
[1767184991388,0.01124897,88897.0,88885.0,0.121]
[1767184991604,0.01124884,88898.0,88885.0,0.121]
[1767184991924,0.06749356,88898.0,88885.0,0.121]
[1767184992204,0.01124884,88898.0,88885.0,0.121]
[1767184992405,0.0674933,88898.0,88885.0,0.121]
[1767184992563,0.01124897,88897.0,88885.0,0.121]
[1767184993321,0.0674933,88898.0,88885.0,0.121]
[1767184993503,0.01124884,88898.0,88885.0,0.121]
[1767184993712,0.06749434,88897.0,88885.0,0.121]
[1767184993918,0.0112491,88896.0,88885.0,0.121]
[1767184994322,0.01124922,88895.0,88885.0,0.121]
[1767184994483,0.01124897,88897.0,88885.0,0.121]
[1767184995501,0.01124897,88897.0,88881.0,0.06751027]
[1767184995502,0.01125454,88853.0,88852.0,0.04595995]
[1767184995719,0.01125416,88856.0,88838.0,9.5e-05]
[1767184995720,0.26029132,88862.0,88853.0,0.000549]
[1767184995961,0.01697353,88861.0,88850.0,0.26029132]
[1767184996177,0.00224516,88878.0,88851.0,0.121]
[1767184996178,0.0112534,88862.0,88851.0,0.121]
[1767184996378,0.01125365,88860.0,88853.0,0.121]
[1767184996583,0.01125416,88856.0,88853.0,0.121]
[1767184996803,0.06752551,88856.0,88853.0,0.121]
[1767184997002,0.02250815,88858.0,88853.0,0.121]
[1767184997232,0.01125416,88856.0,88853.0,0.121]
[1767184997460,0.01125416,88856.0,88844.0,9.5e-05]
[1767184997461,0.05058592,88852.0,88844.0,9.5e-05]
[1767184997732,0.0338741,88851.0,88844.0,9.5e-05]
[1767184997938,0.06752746,88853.0,88844.0,9.5e-05]
[1767184998083,0.02827335,88852.0,88844.0,9.5e-05]
[1767184998279,0.05627335,88852.0,88844.0,9.5e-05]
[1767184998517,0.05627335,88852.0,88845.0,0.02719063]
[1767184998518,0.05071019,88851.0,88845.0,0.02719063]
[1767184998792,0.01125479,88851.0,88846.0,0.12633]
[1767184998991,0.01125467,88852.0,88846.0,0.12633]
[1767184999196,0.01125492,88850.0,88846.0,0.12633]
[1767184999534,0.01125492,88850.0,88846.0,0.12719]
[1767184999897,0.01125492,88850.0,88848.0,0.12719]
[1767184999898,0.01125424,88849.0,88848.0,0.12719]
[1767185001168,0.05682488,88848.0,88847.0,0.14378956]
[1767185001402,0.0112553,88847.0,88845.0,0.12719]
[1767185001610,0.22510212,88849.0,88845.0,0.12719]
[1767185001817,0.06808247,88847.0,88846.0,0.1410705]
[1767185002031,0.0112553,88847.0,88846.0,0.1410705]
[1767185002714,0.05627649,88848.0,88846.0,0.11794726]
[1767185003350,0.067531,88849.0,88846.0,0.11794726]
[1767185003558,0.01132,88848.0,88846.0,0.11794726]
[1767185003780,0.01132,88848.0,88847.0,0.14014623]
[1767185003998,0.010771,88848.0,88847.0,0.14014623]
[1767185004870,0.00280711,88848.0,88847.0,0.01295623]
[1767185005105,0.00280711,88848.0,88847.0,0.12719]
[1767185005495,0.00080925,88848.0,88845.0,0.12719]
[1767185006578,0.06580232,88859.0,88845.0,0.12719]
[1767185006925,0.01125391,88858.0,88845.0,0.12719]
[1767185007044,0.00953321,88859.0,88846.0,0.14894985]
[1767185007912,0.01125378,88859.0,88846.0,0.14894985]
[1767185008202,0.01125403,88857.0,88846.0,0.14894985]
[1767185008501,0.01125391,88858.0,88846.0,0.14894985]
[1767185008645,0.26029132,88856.0,88846.0,0.14894985]
[1767185008860,0.01125467,88852.0,88847.0,0.01605649]
[1767185009260,0.26029132,88860.0,88847.0,0.01605649]
[1767185009497,0.05626919,88859.0,88847.0,0.01605649]
[1767185009880,0.26029132,88860.0,88847.0,0.01605649]
[1767185010117,0.06752448,88857.0,88847.0,0.01605649]
[1767185010321,0.01125416,88856.0,88848.0,0.01548615]
[1767185010751,0.01125429,88855.0,88848.0,0.01548615]
[1767185010959,0.01125416,88856.0,88848.0,0.01548615]
[1767185011261,0.01125403,88857.0,88848.0,0.01548615]
[1767185012816,0.01125391,88858.0,88848.0,0.01548615]
[1767185013021,0.03378486,88878.0,88848.0,0.01548615]
[1767185013022,0.11985,88873.0,88858.0,0.12719]
[1767185013227,0.01132,88873.0,88860.0,0.38748132]
[1767185013441,0.26037252,88870.0,88860.0,0.12719]
[1767185013644,8.12e-05,88870.0,88860.0,0.12719]
[1767185013863,0.26037252,88870.0,88860.0,0.12719]
[1767185014088,0.26037252,88870.0,88861.0,0.01497644]